bitfinex/quotes_ETHUSD_20260209
["timestamp","ask_amount","ask_price","bid_price","bid_amount"]
[1770644385999,6.92896914,2042.2,2041.7,1.22442251]
[1770644386205,5.70479741,2042.2,2041.7,1.22442251]
[1770644386632,0.002,2041.8,2041.7,1.22442251]
[1770644386817,0.86768767,2042.2,2041.7,1.22442251]
[1770644387134,0.002,2042.0,2041.7,1.22442251]
[1770644387500,0.002,2042.3,2041.7,1.22442251]
[1770644388432,4.83910974,2042.3,2041.6,1.22449248]
[1770644389003,4.83910974,2042.3,2041.5,5.0545513]
[1770644389209,4.83710974,2042.1,2041.5,5.0545513]
[1770644391340,6.06137999,2042.1,2041.5,5.0545513]
[1770644391634,4.83710974,2042.0,2041.5,5.0545513]
[1770644392010,6.06132658,2042.2,2041.5,5.0545513]
[1770644392234,4.89856736,2042.3,2041.6,4.39922354]
[1770644392235,0.002,2042.3,2041.6,4.39922354]
[1770644392416,0.002,2042.3,2041.7,4.39922354]
[1770644393237,0.002,2042.3,2041.6,13.150855]
[1770644393612,0.002,2042.3,2041.7,1.2244698]
[1770644394107,0.002,2042.3,2041.8,4.39922354]
[1770644394749,0.002,2042.9,2042.1,18.313816]
[1770644394908,0.002,2042.9,2042.3,6.27169]
[1770644395303,0.002,2042.9,2042.3,2.425911]
[1770644395536,0.002,2042.9,2042.4,6.891926]
[1770644395713,0.002,2042.9,2042.5,1.2239902]
[1770644398442,0.002,2042.9,2042.5,5.62321374]
[1770644399238,0.002,2042.9,2042.4,1.22400888]
[1770644399618,0.002,2042.7,2042.4,1.22400888]
[1770644400118,0.002,2042.7,2042.4,3.894]
[1770644400638,4.83910974,2042.7,2042.2,3.421]
[1770644401436,0.002,2042.7,2042.2,4.64516307]
[1770644401848,0.002,2042.7,2042.2,3.421]
[1770644402058,0.002,2042.7,2042.2,4.64516829]
[1770644402256,1.22587036,2042.7,2042.2,4.64516829]
[1770644402444,1.22587036,2042.7,2042.2,3.421]
[1770644403063,1.22587036,2042.7,2042.2,4.64514696]
[1770644404161,0.002,2042.7,2042.2,4.64514696]
[1770644406035,0.002,2042.9,2042.5,17.210219]
[1770644406371,0.002,2042.9,2042.6,1.22393028]
[1770644407452,0.002,2042.9,2042.6,5.62315382]
[1770644407762,1.22350386,2043.4,2042.7,17.47091]
[1770644407964,1.22350386,2043.4,2042.6,1.22393028]
[1770644407965,4.83710974,2043.3,2042.6,1.22393028]
[1770644408387,4.83710974,2043.2,2042.4,4.89619103]
[1770644408667,1.22355547,2043.3,2042.5,7.665064]
[1770644409164,1.22355547,2043.3,2042.6,8.364956]
[1770644409752,1.22355547,2043.3,2042.6,6.968597]
[1770644409945,1.22355547,2043.3,2042.6,4.678914]
[1770644410146,1.22355547,2043.3,2042.4,4.89619103]
[1770644410147,4.83710974,2043.2,2042.4,4.89619103]
[1770644410352,4.83710974,2043.2,2042.5,6.394]
[1770644410564,1.22363075,2043.1,2042.6,1.22393028]
[1770644410753,1.22363075,2043.1,2042.5,1.22394364]
[1770644411741,0.002,2043.0,2042.4,1.22505012]
[1770644412148,0.002,2043.0,2042.5,1.22398728]
[1770644413454,0.002,2043.0,2042.4,0.001]
[1770644413661,4.83910974,2043.0,2042.4,0.001]
[1770644415677,5.77251742,2042.9,2042.4,0.001]
[1770644416078,1.22375055,2042.9,2042.4,0.001]
[1770644416283,4.54876687,2042.8,2042.4,0.001]
[1770644417692,4.54876687,2042.6,2042.2,0.001]
[1770644417910,4.54876687,2042.6,2041.7,3.421]
[1770644418059,4.54876687,2042.6,2041.7,0.001]
[1770644419697,4.3930231,2042.4,2041.7,0.001]
[1770644420000,4.3930231,2042.2,2041.7,0.001]
[1770644420785,4.3930231,2042.0,2041.5,0.001]
[1770644422390,5.61737297,2041.9,2041.5,0.001]
[1770644423061,4.3930231,2041.8,2041.3,0.001]
[1770644423397,4.3930231,2041.8,2040.7,1.22502944]
[1770644424873,4.3930231,2041.6,2040.7,7.15657582]
[1770644425093,4.3930231,2041.6,2040.7,1.22506982]
[1770644425293,4.3930231,2041.6,2040.9,0.001]
[1770644427328,5.61761286,2041.5,2040.9,0.001]
[1770644428603,1.22458976,2041.5,2040.9,0.001]
[1770644428791,4.89715983,2042.0,2041.1,4.46065849]
[1770644431113,4.3930231,2042.0,2041.2,1.22476974]
[1770644432220,9.28998914,2042.2,2041.2,5.68542823]
[1770644432586,9.28998914,2042.2,2041.3,4.46065849]
[1770644433492,4.3930231,2042.1,2041.3,4.46065849]
[1770644435827,4.3930231,2041.9,2041.0,3.83]
[1770644435998,4.3930231,2041.9,2041.0,1.22488633]
[1770644436512,4.3930231,2041.9,2041.0,5.68554482]
[1770644437907,1.22440983,2041.8,2041.1,4.46065849]
[1770644438307,1.22440983,2041.8,2041.5,0.001]
[1770644440232,4.89763933,2041.9,2041.5,0.001]
[1770644440603,1.22422995,2042.1,2041.5,0.001]
[1770644441715,1.22422995,2042.1,2041.5,4.46165849]
[1770644442229,0.002,2042.2,2041.6,4.46065849]
[1770644442528,0.002,2042.2,2041.8,4.46065849]
[1770644444029,0.002,2042.2,2041.6,7.19065849]
[1770644444217,0.002,2042.2,2041.7,5.65754817]
[1770644444531,0.002,2042.2,2041.7,5.68507666]
[1770644444842,0.002,2042.2,2041.6,4.89798649]
[1770644444843,4.3950231,2042.2,2041.5,0.001]
[1770644446519,1.22422995,2042.1,2041.5,0.001]
[1770644447947,1.22422995,2042.1,2041.5,4.52427949]
[1770644448314,1.22422995,2042.1,2041.5,0.001]
[1770644449122,5.52902697,2042.1,2041.5,0.001]
[1770644451125,5.36049306,2042.0,2041.5,0.001]
[1770644451322,5.36049306,2041.9,2041.5,0.001]
[1770644451528,4.30479702,2041.9,2041.5,0.001]
[1770644451928,4.30679702,2041.9,2041.5,0.001]
[1770644452354,0.002,2041.9,2041.5,0.001]
[1770644455339,4.30679702,2041.9,2041.5,0.001]
[1770644456235,1.05627609,2041.8,2041.5,0.001]
[1770644456442,0.002,2041.9,2041.5,0.001]
[1770644456773,1.05627751,2041.8,2041.5,0.001]
[1770644456948,4.30679702,2041.9,2041.5,0.001]
[1770644457131,1.2244698,2041.7,2041.5,0.001]
[1770644458256,1.22638953,2041.9,2041.5,0.001]
[1770644459262,4.30679702,2041.9,2041.5,0.001]
[1770644459470,5.36145116,2041.8,2041.3,0.001]
[1770644459671,4.30479702,2041.8,2041.3,0.001]
[1770644460193,4.37831922,2041.6,2040.6,0.001]
[1770644460336,4.30479702,2041.4,2040.6,0.001]
[1770644460642,4.30479702,2041.0,2040.4,0.001]
[1770644460843,4.30479702,2040.8,2040.4,0.001]
[1770644461365,1.22506982,2040.7,2040.4,0.001]
[1770644461574,5.52986684,2040.7,2040.4,0.001]
[1770644461782,3.422,2041.0,2040.4,0.001]
[1770644461783,4.30479702,2041.0,2040.4,0.001]
[1770644461942,1.31605289,2041.1,2040.4,0.001]
[1770644461943,4.64686641,2041.1,2040.4,0.001]
[1770644462136,1.22486641,2041.1,2040.4,0.001]
[1770644463774,4.89931899,2041.2,2040.4,1.22624995]
[1770644464879,4.89931899,2041.2,2040.6,0.001]
[1770644467175,4.30479702,2041.3,2040.6,0.001]
[1770644467470,4.64670004,2041.4,2040.6,4.52427949]
[1770644467672,4.89776857,2041.8,2040.9,17.928752]
[1770644467878,4.89776857,2041.8,2041.0,4.52327949]
[1770644468087,4.89776857,2041.8,2041.0,5.74812109]
[1770644468246,4.89776857,2041.8,2040.6,0.001]
[1770644468247,4.30479702,2041.7,2040.6,0.001]
[1770644468565,0.002,2041.9,2041.4,4.52327949]
[1770644468772,0.002,2042.1,2041.5,18.14056549]
[1770644469076,1.22395249,2042.6,2041.8,17.456497]
[1770644469384,4.64791783,2042.7,2041.8,17.456497]
[1770644469553,1.22393227,2042.6,2041.8,17.456497]
[1770644469754,4.6478714,2042.7,2041.9,4.52327949]
[1770644470061,3.424,2042.7,2042.1,1.22422995]
[1770644470257,3.424,2042.7,2042.2,2.333432]
[1770644470462,0.002,2042.7,2042.2,22.427672]
[1770644470662,0.002,2042.7,2042.3,20.721633]
[1770644470864,0.002,2042.7,2042.3,19.550543]
[1770644471063,0.002,2042.7,2042.3,18.550543]
[1770644471979,0.002,2042.7,2042.4,1.22405013]
[1770644472988,0.002,2042.7,2041.4,1.22461648]
[1770644472989,0.0735222,2042.6,2041.4,1.22461648]
[1770644473195,0.0735222,2042.3,2041.0,4.207112]
[1770644473350,0.0735222,2042.0,2041.1,3.986672]
[1770644473555,0.0735222,2042.3,2041.0,4.89954208]
[1770644473780,0.0735222,2042.0,2041.1,2.00066]
[1770644473947,1.22434987,2041.9,2041.1,3.22545977]
[1770644474151,1.22434987,2041.9,2040.5,4.52327949]
[1770644474382,1.22434987,2041.9,2041.0,1.2248618]
[1770644474584,1.22434987,2041.9,2041.1,2.01766]
[1770644474788,1.22434987,2041.9,2041.0,1.2248618]
[1770644475456,1.22434987,2041.9,2041.1,5.71766]
[1770644475657,1.22434987,2041.9,2041.1,4.14766]
[1770644475871,1.22434987,2041.9,2041.1,1.22482424]
[1770644476194,1.22417001,2042.2,2040.6,1.32852986]
[1770644476375,0.0735222,2042.0,2040.6,1.32852986]
[1770644476777,4.41344634,2041.9,2040.7,6.865294]
[1770644476980,4.41344634,2041.9,2040.8,0.001]
[1770644477380,4.41344634,2041.9,2040.9,3.453282]
[1770644478491,1.22440983,2041.8,2040.9,4.67821226]
[1770644478668,5.47666129,2041.8,2040.9,1.22493026]
[1770644480983,1.22440983,2041.8,2040.9,13.222823]
[1770644481177,1.22440983,2041.8,2040.9,11.785652]
[1770644481398,1.22440983,2041.8,2040.9,5.845402]
[1770644481581,5.47666129,2041.8,2040.9,2.681806]
[1770644483089,5.47666129,2041.8,2041.0,1.22488975]
[1770644483674,1.22428991,2042.1,2041.1,25.61305753]
[1770644483874,1.22428991,2042.1,2041.2,12.314048]
[1770644484075,1.22428991,2042.1,2041.2,3.491]
[1770644484282,0.002,2042.5,2041.5,4.34458653]
[1770644484482,1.22599685,2042.5,2041.6,8.592492]
[1770644484705,0.002,2042.5,2041.6,8.592492]
[1770644485205,0.002,2042.5,2041.7,1.2244698]
[1770644485412,1.22599527,2042.5,2041.8,4.086246]
[1770644486107,1.22599395,2042.5,2041.8,4.086246]
[1770644488808,0.002,2042.5,2041.9,1.22434987]
[1770644489307,4.25425146,2042.5,2041.6,2.574635]
[1770644489496,4.25425146,2042.5,2041.7,1.22446242]
[1770644490086,0.002,2042.3,2041.7,1.22446057]
[1770644490300,4.25425146,2042.3,2041.6,1.22450045]
[1770644490501,4.25425146,2042.3,2041.5,5.05455991]
[1770644490987,1.22417001,2042.2,2041.5,1.22455991]
[1770644491303,1.22614339,2042.3,2041.6,9.373308]
[1770644491481,1.22614494,2042.3,2041.6,9.373308]
[1770644492907,4.32777366,2042.3,2041.3,1.22467907]
[1770644494313,4.32777366,2042.3,2041.4,1.22464813]
[1770644494604,4.32777366,2042.3,2041.2,4.89906345]
[1770644494605,4.32777366,2042.3,2041.2,1.22473335]
[1770644494908,4.25225146,2042.1,2041.0,1.22488975]
[1770644495116,4.25225146,2041.6,2040.9,0.001]
[1770644495429,4.25225146,2041.2,2040.8,0.001]
[1770644495587,4.32577366,2041.0,2040.4,0.001]
[1770644495909,4.32577366,2041.0,2040.3,0.001]
[1770644496105,4.25225146,2041.0,2040.3,0.001]
[1770644496893,5.47720123,2040.9,2040.3,0.001]
[1770644498014,5.47720123,2040.9,2040.1,0.001]
[1770644498015,0.0735222,2040.7,2040.1,0.001]
[1770644498324,4.25225146,2040.6,2040.1,0.001]
[1770644499025,4.25225146,2040.4,2039.9,0.001]
[1770644499433,4.25225146,2040.4,2039.7,0.001]
[1770644500527,4.25225146,2040.2,2039.7,0.001]
[1770644501104,4.25225146,2040.2,2039.0,0.001]
[1770644501105,4.25225146,2039.8,2039.0,0.001]
[1770644501507,4.25225146,2039.6,2039.0,0.001]
[1770644501701,4.9017205,2040.2,2039.0,0.001]
[1770644501702,9.15304191,2040.5,2039.2,4.34458653]
[1770644501921,1.22524995,2040.4,2039.3,15.224421]
[1770644502119,1.22524995,2040.4,2040.3,0.001]
[1770644502442,1.22524995,2040.4,2039.0,0.001]
[1770644502443,4.25225146,2040.3,2039.0,0.001]
[1770644502626,4.25225146,2040.3,2039.1,3.57165]
[1770644502834,4.25225146,2040.3,2040.0,0.001]
[1770644503034,4.25225146,2040.1,2039.1,4.83200158]
[1770644503236,4.25225146,2040.1,2039.2,0.001]
[1770644504415,4.25225146,2039.9,2039.2,0.001]
[1770644505129,5.47786181,2039.8,2039.2,0.001]
[1770644505311,4.34443843,2039.7,2039.2,0.001]
[1770644507320,1.22573053,2039.6,2039.2,0.001]
[1770644507514,1.22555027,2039.9,2039.2,0.001]
[1770644510641,4.64852899,2040.0,2039.2,0.001]
[1770644512422,1.22535471,2040.3,2039.3,28.708727]
[1770644512623,1.22535471,2040.3,2039.5,16.837463]
[1770644512823,1.22517803,2040.6,2039.7,7.069922]
[1770644513035,1.22517803,2040.6,2039.7,4.483104]
[1770644514129,5.56961646,2040.6,2039.7,1.22562089]
[1770644514849,5.56961646,2040.6,2039.9,0.001]
[1770644516224,4.34443843,2040.5,2039.9,0.001]
[1770644519127,1.22524995,2040.4,2039.9,0.001]
[1770644519338,5.56968838,2040.4,2039.9,0.001]
[1770644519826,1.22524995,2040.4,2039.9,0.001]
[1770644521562,5.56968838,2040.4,2039.9,0.001]
[1770644521867,4.90060353,2040.6,2039.9,0.001]
[1770644522247,4.34443843,2040.5,2039.9,0.001]
[1770644523149,1.22524995,2040.4,2039.9,0.001]
[1770644525272,4.34443843,2040.3,2039.9,0.001]
[1770644526166,4.34443843,2040.1,2039.7,0.001]
[1770644526363,4.34443843,2039.9,2039.2,0.001]
[1770644526566,4.34443843,2039.9,2039.4,0.001]
[1770644527267,1.22561035,2039.8,2039.4,0.001]
[1770644529380,1.22558352,2039.9,2039.4,0.001]
[1770644530078,5.57002195,2039.9,2039.4,0.001]
[1770644530779,1.22558352,2039.9,2039.4,0.001]
[1770644538286,5.35804864,2039.9,2039.4,0.001]
[1770644538490,4.13246512,2039.8,2039.4,0.001]
[1770644539691,1.22533236,2040.3,2039.6,4.46019123]
[1770644539862,4.64933236,2040.3,2039.4,0.001]
[1770644540280,1.22543012,2040.1,2039.6,0.001]
[1770644540778,7.55646512,2040.0,2039.6,0.001]
[1770644541267,3.424,2040.0,2039.6,0.001]
[1770644542363,1.22555027,2039.9,2039.6,0.001]
[1770644542699,1.56390363,2039.9,2039.6,0.001]
[1770644545695,4.98790363,2039.9,2039.6,0.001]
[1770644546410,6.21345835,2039.9,2039.6,0.001]
[1770644548192,3.424,2039.8,2039.6,0.001]
[1770644548693,2.78945835,2039.9,2039.6,0.001]
[1770644548694,3.424,2039.7,2039.6,0.001]
[1770644549483,1.22555472,2039.9,2039.6,0.001]
[1770644549685,3.424,2039.8,2039.6,0.001]
[1770644550497,3.424,2039.8,2039.1,9.34660871]
[1770644551306,1.56390363,2039.7,2039.1,9.34660871]
[1770644552385,1.56390363,2039.7,2039.2,4.46019123]
[1770644552683,1.56390363,2039.7,2039.3,4.46119123]
[1770644554513,1.56390363,2039.7,2039.4,1.22585074]
[1770644555020,3.424,2039.7,2039.4,1.22585074]
[1770644555779,3.424,2039.7,2039.4,5.68604197]
[1770644556016,1.22745733,2040.1,2039.4,1.22585074]
[1770644556194,3.424,2040.0,2039.4,1.22585074]
[1770644556508,1.22549711,2040.0,2039.3,0.001]
[1770644556712,4.64949711,2040.0,2039.3,0.001]
[1770644557084,1.22549711,2040.0,2039.3,0.001]
[1770644557309,3.424,2039.9,2039.3,0.001]
[1770644557712,3.424,2039.8,2039.3,0.001]
[1770644558313,3.424,2039.7,2039.3,0.001]
[1770644558490,3.424,2039.9,2039.3,0.001]
[1770644559015,3.424,2039.8,2039.3,0.001]
[1770644559195,3.424,2039.7,2039.3,0.001]
[1770644559391,3.424,2039.9,2039.3,0.001]
[1770644559716,0.002,2040.1,2039.5,4.46019123]
[1770644559914,1.22744088,2040.1,2039.3,4.46119123]
[1770644560227,5.359906,2040.1,2039.3,7.88619123]
[1770644560389,5.359906,2040.1,2039.4,3.768114]
[1770644560912,5.359906,2040.1,2039.4,2.1089]
[1770644561107,1.22744088,2040.1,2039.5,1.22579063]
[1770644561803,0.002,2040.1,2039.5,1.22579063]
[1770644562195,1.22743044,2040.1,2039.5,1.22579063]
[1770644562393,0.002,2040.1,2039.5,1.22579063]
[1770644562586,1.22743144,2040.1,2039.5,1.22579063]
[1770644563788,0.002,2040.1,2039.4,4.90316803]
[1770644563991,0.002,2040.1,2039.4,9.36335926]
[1770644565204,0.002,2040.1,2039.4,9.36435926]
[1770644565403,0.002,2039.9,2039.4,9.36435926]
[1770644567623,0.002,2040.1,2039.7,4.05966756]
[1770644568127,0.002,2040.1,2039.8,1.22561035]
[1770644575533,0.002,2040.1,2039.7,8.96210897]
[1770644575534,4.17442613,2040.1,2039.7,1.22563734]
[1770644577640,4.17442613,2040.1,2039.5,5.681993]
[1770644578638,4.17442613,2040.1,2039.9,0.001]
[1770644579914,5.39985652,2040.1,2039.9,0.001]
[1770644580118,4.17242613,2040.0,2039.7,0.001]
[1770644580327,4.17242613,2040.0,2039.4,0.001]
[1770644582015,5.3979764,2039.9,2039.4,0.001]
[1770644582217,4.17242613,2039.8,2039.5,0.0735222]
[1770644583154,4.17242613,2039.8,2039.4,0.001]
[1770644584024,4.90196201,2040.0,2039.4,0.001]
[1770644584025,5.39796174,2040.0,2039.4,0.001]
[1770644584231,5.39792326,2040.0,2039.4,0.001]
[1770644584818,0.002,2040.1,2039.5,4.13318976]
[1770644585018,0.002,2040.1,2039.5,0.0735222]
[1770644586042,4.17442613,2040.1,2039.5,1.22573149]
[1770644587446,1.22522071,2040.5,2040.4,0.0735222]
[1770644588021,4.90062647,2040.6,2040.4,0.0735222]
[1770644588327,4.90062647,2040.6,2040.1,0.0735222]
[1770644588328,9.0730526,2040.6,2040.1,0.0735222]
[1770644588732,9.0730526,2040.6,2039.9,1.2255147]
[1770644589244,9.0730526,2040.6,2039.8,1.29909147]
[1770644589446,4.17242613,2040.5,2039.8,1.29909147]
[1770644590153,1.22524995,2040.4,2039.8,1.22556927]
[1770644590451,1.22524995,2040.4,2039.8,1.29909147]
[1770644591248,1.22724995,2040.4,2039.8,1.29909147]
[1770644592244,5.39967608,2040.4,2039.7,0.001]
[1770644593233,5.39967608,2040.4,2039.8,0.0735222]
[1770644595553,4.04987107,2040.3,2039.7,1.22666946]
[1770644595852,4.04987107,2040.3,2039.5,0.001]
[1770644596150,4.04987107,2040.1,2039.5,0.001]
[1770644597274,1.22549019,2040.0,2039.5,0.001]
[1770644600451,1.22549019,2040.0,2039.5,0.0745222]
[1770644602055,5.16133469,2040.2,2039.5,0.0745222]
[1770644602445,5.16133469,2040.2,2039.5,0.001]
[1770644602648,3.93596463,2040.1,2039.5,0.001]
[1770644603845,1.22537006,2040.2,2039.5,0.001]
[1770644604048,1.22537006,2040.2,2039.5,4.00669772]
[1770644605084,1.22537006,2040.2,2039.7,0.001]
[1770644605399,0.002,2040.0,2039.8,0.0735222]
[1770644605556,1.22499328,2040.9,2040.5,0.0735222]
[1770644605880,1.22499328,2040.9,2039.8,0.0735222]
[1770644605881,5.16095791,2040.9,2040.3,0.0735222]
[1770644606175,5.16095791,2040.9,2040.1,1.29895232]
[1770644608078,0.002,2041.0,2040.1,5.23112784]
[1770644608582,1.05578038,2040.9,2039.8,1.29910709]
[1770644608786,1.05578038,2040.9,2039.7,5.23235793]
[1770644608787,3.93596463,2040.7,2039.7,5.23235793]
[1770644608982,3.93596463,2040.7,2039.7,0.001]
[1770644608983,3.93596463,2040.5,2039.7,0.001]
[1770644609181,3.93596463,2040.3,2039.7,0.001]
[1770644609357,4.99174501,2040.2,2039.7,0.001]
[1770644609680,3.93596463,2040.2,2039.7,0.001]
[1770644609888,4.99211777,2040.1,2039.7,0.001]
[1770644610080,1.22549019,2040.0,2039.7,0.001]
[1770644610257,1.22549019,2040.0,2039.5,0.001]
[1770644612489,5.16145482,2040.0,2039.5,0.001]
[1770644613476,1.22546414,2040.1,2039.5,0.001]
[1770644614363,4.6494125,2040.2,2039.5,4.00669772]
[1770644614590,3.424,2040.2,2039.5,4.00669772]
[1770644614888,4.64906982,2040.7,2039.7,3.93217552]
[1770644615296,4.64906982,2040.7,2039.8,4.00569772]
[1770644615596,0.002,2041.0,2040.3,3.93217552]
[1770644615804,0.002,2041.0,2040.5,3.93217552]
[1770644616569,0.002,2041.0,2040.6,5.15730538]
[1770644616768,0.002,2041.0,2040.7,4.00569772]
[1770644616986,0.002,2041.0,2040.8,4.2366]
[1770644617185,0.002,2041.0,2040.7,4.00569772]
[1770644617385,0.002,2041.0,2040.8,2.1066]
[1770644617590,0.002,2041.0,2040.7,4.00569772]
[1770644617800,0.002,2041.0,2040.8,2.095413]
[1770644618298,0.002,2041.0,2040.6,1.22512986]
[1770644618299,0.002,2040.7,2040.6,1.22512986]
[1770644618476,0.002,2041.0,2040.6,1.22512986]
[1770644619098,0.002,2041.0,2040.6,5.15730538]
[1770644619275,0.002,2041.0,2040.7,4.00569772]
[1770644620115,0.002,2041.3,2040.7,4.00569772]
[1770644620901,0.002,2041.3,2040.7,0.0735222]
[1770644621103,0.002,2041.3,2040.7,1.29858638]
[1770644621400,3.93796463,2041.3,2040.4,1.22520287]
[1770644621578,3.93796463,2041.3,2040.5,1.22518132]
[1770644621991,0.002,2041.3,2040.7,1.22506194]
[1770644625496,0.002,2041.3,2040.6,1.22508825]
[1770644627706,4.29140242,2041.3,2040.6,1.22508825]
[1770644627899,4.29140242,2041.3,2040.5,1.2986671]
[1770644628108,1.22476974,2041.2,2040.5,1.2986671]
[1770644628398,5.51417216,2041.2,2040.3,4.90105489]
[1770644628605,5.51417216,2041.2,2040.4,1.22524404]
[1770644628987,5.51417216,2041.2,2040.5,1.22518755]
[1770644629388,5.51417216,2041.2,2040.4,1.22520777]
[1770644630130,0.002,2041.1,2040.3,4.90114962]
[1770644632504,0.002,2041.1,2040.3,1.22531]
[1770644632711,4.29140242,2041.1,2040.3,1.22531]
[1770644633096,4.29140242,2041.1,2040.2,1.22532105]
[1770644633595,4.29140242,2041.1,2040.2,1.22535752]
[1770644633800,4.28940242,2041.0,2040.0,1.22544004]
[1770644634012,4.28940242,2041.0,2039.9,4.90306706]
[1770644634013,4.28940242,2041.0,2039.9,0.001]
[1770644634600,4.28940242,2040.8,2039.9,0.001]
[1770644635102,4.28940242,2040.8,2039.9,4.19946117]
[1770644637134,1.22506982,2040.7,2039.9,5.42495798]
[1770644637933,4.28940242,2040.6,2039.9,0.001]
[1770644639224,4.28940242,2040.4,2039.9,0.001]
[1770644639428,1.2251899,2040.5,2039.9,0.001]
[1770644640931,4.89977346,2041.0,2040.1,4.19846117]
[1770644641132,4.89977346,2041.0,2040.2,1.22537006]
[1770644642438,4.64985532,2041.1,2040.3,4.27198337]
[1770644642753,0.002,2041.0,2040.3,4.27198337]
[1770644643117,0.002,2041.0,2040.4,1.22524995]
[1770644643341,0.002,2041.0,2040.4,5.42371112]
[1770644644340,0.002,2041.0,2040.5,4.19846117]
[1770644645419,0.002,2041.0,2040.6,1.29865206]
[1770644645736,0.002,2041.0,2040.7,4.19846117]
[1770644646318,0.002,2041.0,2040.3,1.22526677]
[1770644646515,0.002,2041.0,2040.5,5.42364956]
[1770644646839,0.002,2041.0,2040.6,4.19846117]
[1770644647227,0.002,2041.0,2040.5,1.22518839]
[1770644651412,0.002,2041.0,2040.4,1.22520101]
[1770644651618,0.002,2041.0,2040.3,1.29879103]
[1770644651843,0.002,2041.0,2040.4,1.22524325]
[1770644652141,0.002,2041.0,2040.3,1.22526124]
[1770644652543,0.002,2041.0,2040.4,1.22521594]
[1770644652718,0.002,2041.0,2040.4,5.42367711]
[1770644653341,0.002,2041.0,2040.3,1.29878309]
[1770644655640,0.002,2041.0,2040.5,4.07230954]
[1770644656144,0.002,2041.0,2040.6,0.001]
[1770644656555,0.002,2041.0,2040.6,4.14683174]
[1770644658048,0.002,2041.0,2040.7,1.22506982]
[1770644659640,0.002,2041.1,2040.7,1.22506982]
[1770644668340,3.82074558,2041.0,2040.6,0.001]
[1770644668767,0.002,2041.1,2040.6,5.24029792]
[1770644669066,0.002,2041.1,2040.9,0.001]
[1770644671152,0.002,2041.3,2040.9,4.01517541]
[1770644671153,1e-08,2041.3,2040.9,4.01517541]
[1770644671986,0.002,2041.5,2041.1,4.01417541]
[1770644673270,0.002,2041.5,2041.1,5.23897652]
[1770644673973,0.002,2041.5,2041.1,1.22480111]
[1770644675682,0.002,2041.5,2041.1,2.4068]
[1770644675883,0.002,2041.5,2041.0,4.89951424]
[1770644676065,0.002,2041.5,2041.1,2.4068]
[1770644676583,0.002,2041.5,2041.1,2.172249]
[1770644677495,3.82074558,2041.4,2040.9,1.22590444]
[1770644677661,3.82074558,2041.4,2040.9,1.22594562]
[1770644678197,0.002,2041.5,2041.1,1.22481976]
[1770644682059,0.002,2041.5,2041.3,0.001]
[1770644682661,3.82274558,2041.5,2041.3,0.001]
[1770644683560,0.002,2041.5,2041.3,0.001]
[1770644684685,3.82274558,2041.5,2041.3,0.001]
[1770644684887,3.82274558,2041.5,2040.7,0.001]
[1770644684888,3.82074558,2041.2,2040.7,0.001]
[1770644685064,3.82074558,2041.1,2040.7,0.001]
[1770644685869,3.91134814,2041.0,2040.2,0.001]
[1770644686270,3.91134814,2040.8,2040.2,0.001]
[1770644688283,1.22506982,2040.7,2040.2,0.001]
[1770644688488,5.13641796,2040.7,2040.2,0.001]
[1770644689061,1.22506982,2040.7,2040.2,0.001]
[1770644689267,3.91134814,2040.6,2040.2,0.001]
[1770644689469,3.91134814,2040.5,2040.2,0.001]
[1770644689667,3.91134814,2040.5,2039.9,0.001]
[1770644690789,1.22524995,2040.4,2039.9,0.001]
[1770644691288,5.13659809,2040.4,2039.9,0.001]
[1770644693087,1.22524995,2040.4,2039.9,0.001]
[1770644694485,1.22524995,2040.4,2040.1,0.001]
[1770644695392,4.9009998,2040.5,2040.1,0.001]
[1770644696299,1.2251899,2040.5,2040.1,0.001]
[1770644700712,3.91134814,2040.4,2039.9,0.001]
[1770644702304,1.2251899,2040.5,2039.9,0.001]
[1770644702505,3.422,2040.6,2040.2,1.22537006]
[1770644702695,4.64713089,2040.6,2040.1,1.22538044]
[1770644705109,3.422,2040.6,2040.1,1.22538044]
[1770644705903,4.64713436,2040.6,2040.1,1.22538044]
[1770644706512,6.21757126,2041.4,2040.4,3.90534151]
[1770644706513,10.03899151,2041.3,2040.4,3.90534151]
[1770644706712,1.22476974,2041.2,2040.4,3.90534151]
[1770644706912,1.22476974,2041.2,2040.5,1.2251899]
[1770644707211,0.002,2040.6,2040.5,1.2251899]
[1770644708216,0.002,2040.6,2040.4,5.13054198]
[1770644710798,1.22476974,2041.2,2040.4,5.13054198]
[1770644710998,1.22476974,2041.2,2040.5,3.90534151]
[1770644711500,1.22476974,2041.2,2040.6,5.13047137]
[1770644711698,1.22476974,2041.2,2040.5,1.22514257]
[1770644712519,1.22476974,2041.2,2040.4,5.13054124]
[1770644712742,3.91134814,2041.1,2040.3,1.22528087]
[1770644714120,1.22488975,2041.0,2040.3,3.90534151]
[1770644716132,8.81044698,2041.2,2040.5,3.80939005]
[1770644716133,4.89909884,2041.2,2040.5,3.80939005]
[1770644717140,8.61685895,2041.2,2040.3,1.22526109]
[1770644717540,3.71776011,2041.1,2040.3,1.22526109]
[1770644718039,4.89909884,2041.2,2040.4,3.80939005]
[1770644718341,4.89909884,2041.2,2040.4,5.0346328]
[1770644718536,8.76874805,2041.2,2040.4,5.0346328]
[1770644719721,0.002,2041.1,2040.4,5.0346328]
[1770644720428,3.87164921,2041.1,2040.3,0.001]
[1770644720844,0.002,2041.1,2040.3,3.78166211]
[1770644721016,3.87164921,2041.1,2040.3,3.78166211]
[1770644722446,1.22488975,2041.0,2040.3,5.00695533]
[1770644723443,1.22687079,2041.1,2040.4,3.78066211]
[1770644723623,0.002,2041.1,2040.6,3.78066211]
[1770644724143,1.22683043,2041.1,2040.6,3.78066211]
[1770644724742,0.002,2041.1,2040.7,1.22506982]
[1770644726047,0.002,2041.1,2040.6,3.78066211]
[1770644726243,0.002,2041.1,2040.5,1.2251479]
[1770644726434,0.002,2041.1,2040.6,1.22512892]